bitfinex/quotes_ETHUSD_20260313
["timestamp","ask_amount","ask_price","bid_price","bid_amount"]
[1773428076318,1.44721915,2101.0,2100.3,0.32937631]
[1773428076524,2.63714261,2101.0,2100.4,1.47201354]
[1773428077117,1.44721915,2101.0,2100.5,1.376]
[1773428077289,0.001,2101.1,2100.5,2.27910901]
[1773428077617,0.001,2101.1,2100.5,1.376]
[1773428077824,0.001,2101.1,2100.6,0.89947824]
[1773428078025,1.19086177,2101.1,2100.6,0.89947824]
[1773428079708,0.001,2101.1,2100.7,1.19007949]
[1773428081929,0.001,2100.9,2100.6,1.19009016]
[1773428082537,0.001,2100.9,2100.6,2.07183797]
[1773428083742,0.001,2101.1,2100.9,0.8773012]
[1773428083894,0.001,2101.1,2101.0,19.7259952]
[1773428084099,2.63679597,2101.6,2101.0,2.2553012]
[1773428084530,1.44721915,2101.6,2101.0,2.2553012]
[1773428084702,2.636794,2101.6,2101.0,2.2553012]
[1773428085229,2.97282764,2101.8,2101.1,0.8718944]
[1773428085528,1.78334092,2101.8,2101.1,0.8718944]
[1773428085824,1.18940115,2101.9,2101.4,1.18968306]
[1773428086000,1.4641188,2101.9,2101.4,1.18968306]
[1773428086201,2.65343779,2102.1,2101.5,1.379]
[1773428086529,1.4641188,2102.1,2101.5,1.379]
[1773428088731,2.65343979,2102.1,2101.6,5.668227]
[1773428088912,2.65343979,2102.1,2101.6,2.259833]
[1773428089118,2.65343979,2102.1,2101.5,3.42709585]
[1773428089317,2.65343979,2102.1,2101.6,2.24198]
[1773428089512,2.65343979,2102.1,2101.5,3.42709585]
[1773428089914,2.65343979,2102.1,2101.6,2.477088]
[1773428090218,2.65343979,2102.1,2101.5,3.42709585]
[1773428090627,2.65343979,2102.1,2101.6,8.700943]
[1773428091030,2.65343979,2102.1,2101.6,1.18954849]
[1773428092433,1.52206762,2102.0,2101.2,1.18976171]
[1773428092636,1.52206762,2102.0,2101.2,2.098245]
[1773428092842,1.18940006,2101.9,2101.2,2.098245]
[1773428093021,1.52206762,2101.8,2101.2,2.098245]
[1773428093225,1.52206762,2101.8,2101.2,1.18979236]
[1773428093732,1.52206762,2101.8,2101.3,1.382]
[1773428095030,1.52206762,2101.8,2101.3,1.3831]
[1773428095031,2.71158087,2101.7,2101.3,1.3831]
[1773428097542,1.52206762,2101.6,2101.3,1.3831]
[1773428098438,1.52206762,2101.8,2101.4,0.04758732]
[1773428098642,2.71250391,2101.9,2101.4,0.87564816]
[1773428099351,1.52206762,2101.8,2101.3,2.57283349]
[1773428100253,1.52206762,2101.8,2101.4,0.04758732]
[1773428101442,0.001,2101.9,2101.5,0.81895785]
[1773428101646,0.001,2101.9,2101.6,0.04758279]
[1773428101853,1.52206762,2101.8,2101.5,1.383]
[1773428104062,0.001,2101.9,2101.5,3.43025172]
[1773428104561,1.19040608,2101.9,2101.5,2.24063059]
[1773428105231,1.19040608,2101.9,2101.5,2.19304554]
[1773428105761,1.19040608,2101.9,2101.5,3.38266905]
[1773428106131,1.19040608,2101.9,2101.5,2.19304554]
[1773428106332,1.19040608,2101.9,2101.3,0.0011]
[1773428106333,1.52206762,2101.8,2101.3,0.0011]
[1773428107135,1.52206762,2101.8,2101.3,2.03972954]
[1773428107629,1.52206762,2101.8,2101.4,1.377]
[1773428108166,1.18951325,2101.7,2101.4,1.377]
[1773428109370,2.71156974,2101.8,2101.4,2.56667793]
[1773428109535,4.7586974,2101.9,2101.5,0.84317555]
[1773428109536,0.001,2101.9,2101.5,0.84317555]
[1773428110235,0.001,2101.9,2101.6,1.98232546]
[1773428110567,0.001,2101.9,2101.5,1.18959144]
[1773428110865,0.001,2101.9,2101.5,1.97953839]
[1773428111568,0.001,2101.6,2101.5,1.97953839]
[1773428111769,0.001,2101.9,2101.5,1.97953839]
[1773428113140,0.001,2101.9,2101.6,1.23712168]
[1773428113342,4.75794065,2102.2,2101.7,0.78440831]
[1773428113343,0.001,2102.2,2101.7,0.78440831]
[1773428115184,0.001,2102.2,2101.5,4.75844661]
[1773428115185,2.71140135,2102.1,2101.8,1.383]
[1773428115482,1.18933373,2102.1,2101.8,1.383]
[1773428115682,1.52206762,2102.0,2101.8,1.383]
[1773428116462,1.18933373,2102.1,2101.8,1.383]
[1773428116850,2.71140135,2102.1,2101.5,1.96749819]
[1773428117051,1.18933373,2102.1,2101.5,1.96749819]
[1773428117236,1.52206762,2102.0,2101.5,1.96749819]
[1773428117442,1.52306762,2102.2,2101.6,7.369861]
[1773428117745,1.52306762,2102.2,2101.6,3.702044]
[1773428118143,1.52306762,2102.2,2101.5,1.96749819]
[1773428118344,1.52306762,2102.2,2101.6,1.377]
[1773428118644,1.52306762,2102.2,2101.6,2.14670255]
[1773428119141,1.52306762,2102.2,2101.6,0.76970255]
[1773428119346,1.52306762,2102.2,2101.7,1.378]
[1773428120066,1.1892869,2102.1,2101.7,1.378]
[1773428120451,2.71135452,2102.1,2101.7,1.378]
[1773428122666,1.4360374,2102.0,2101.7,1.378]
[1773428123264,1.4360374,2102.0,2101.8,0.0011]
[1773428123775,1.4370374,2102.0,2101.8,0.0011]
[1773428124255,2.62643412,2102.0,2101.8,0.0011]
[1773428124658,1.4360374,2101.9,2101.8,0.0011]
[1773428125564,0.001,2102.0,2101.8,1.34184981]
[1773428125770,2.86003219,2102.7,2102.6,0.08478356]
[1773428125968,2.86003219,2102.7,2101.9,1.38832581]
[1773428125969,1.4360374,2102.6,2101.9,1.38832581]
[1773428126553,1.18906064,2102.5,2101.9,2.57772223]
[1773428126751,2.62509804,2102.5,2101.9,2.57772223]
[1773428127778,2.62509804,2102.5,2101.8,4.75891739]
[1773428127779,1.4360374,2102.4,2101.8,0.0011]
[1773428127963,1.4360374,2102.4,2102.0,1.385]
[1773428128676,2.62521116,2102.3,2102.0,1.385]
[1773428130781,2.62521116,2102.3,2101.8,0.0011]
[1773428131171,1.4360374,2102.2,2101.8,0.0011]
[1773428132078,1.4360374,2102.2,2101.8,1.3871]
[1773428132389,1.4360374,2102.2,2101.5,1.3871]
[1773428132888,1.1892869,2102.1,2101.6,1.3883326]
[1773428133287,2.6253243,2102.1,2101.6,1.3883326]
[1773428135103,1.4360374,2102.0,2101.5,0.0011]
[1773428135401,1.4360374,2102.0,2101.5,1.387]
[1773428135863,1.4360374,2102.0,2101.4,1.387]
[1773428136486,1.4360374,2102.0,2101.8,0.0011]
[1773428136787,1.4370374,2102.0,2101.8,0.0011]
[1773428137494,2.62640575,2102.0,2101.8,0.0011]
[1773428138388,1.19036835,2102.0,2101.8,0.0011]
[1773428138975,2.62640575,2102.0,2101.8,0.0011]
[1773428139266,1.4360374,2101.9,2101.5,1.388]
[1773428139464,2.62549405,2101.8,2101.5,1.388]
[1773428140198,2.62549405,2101.8,2101.3,1.34184981]
[1773428140598,1.18945665,2101.8,2101.4,1.34074981]
[1773428141433,1.18945665,2101.8,2101.4,2.72874981]
[1773428141578,2.62549405,2101.8,2101.4,2.72874981]
[1773428145696,2.62549405,2101.8,2101.4,1.388]
[1773428146372,1.40792294,2101.7,2101.3,1.3881]
[1773428147715,1.40792294,2101.5,2101.3,0.0011]
[1773428149482,1.40792294,2101.5,2101.4,0.0011]
[1773428149880,2.59754939,2101.5,2101.4,0.0011]
[1773428150399,4.75836102,2101.6,2101.4,0.0011]
[1773428150400,1.18961542,2101.6,2101.4,0.0011]
[1773428153403,2.58621272,2101.6,2101.4,0.0011]
[1773428153996,1.3965973,2101.5,2101.4,0.0011]
[1773428154202,2.58622375,2101.5,2101.4,0.0011]
[1773428154406,2.58622375,2101.5,2101.0,2.93325568]
[1773428154407,1.3965973,2101.4,2101.0,2.93325568]
[1773428154775,1.18962645,2101.5,2101.0,2.65004922]
[1773428155004,1.18962645,2101.5,2101.1,1.52070544]
[1773428155209,1.3965973,2101.4,2101.0,0.07314435]
[1773428155504,1.18962645,2101.5,2101.1,1.47311133]
[1773428155888,2.58622375,2101.5,2101.1,1.47311133]
[1773428158303,1.3965973,2101.7,2101.1,1.47311133]
[1773428158601,2.58615571,2101.7,2101.3,1.47311133]
[1773428158802,2.58612732,2101.7,2101.3,1.47311133]
[1773428160308,1.3965973,2101.6,2101.1,1.47311133]
[1773428160492,1.3965973,2101.6,2101.0,0.07314435]
[1773428161909,1.3965973,2101.5,2100.8,0.0011]
[1773428162204,1.3957973,2101.5,2100.7,1.386]
[1773428162409,1.3965973,2101.3,2100.4,2.66255446]
[1773428162612,1.3965973,2101.3,2100.5,2.46612]
[1773428162907,1.3965973,2101.3,2100.4,2.66255446]
[1773428163111,1.3965973,2101.3,2100.5,1.52071904]
[1773428163610,1.3965973,2101.3,2100.5,2.90071904]
[1773428164186,1.3965973,2101.3,2100.6,1.47311133]
[1773428164386,1.1897963,2101.2,2100.8,1.47311133]
[1773428164592,1.3965973,2101.1,2100.5,2.57016487]
[1773428165114,1.3965973,2101.1,2100.5,4.0432762]
[1773428165413,1.3965973,2101.1,2100.5,4.0432947]
[1773428166200,1.3965973,2101.1,2100.4,2.57120698]
[1773428166396,1.3965973,2100.9,2100.4,1.381]
[1773428168513,1.3965973,2100.9,2100.2,0.0011]
[1773428168514,1.3965973,2100.7,2100.2,0.0011]
[1773428168820,2.58652895,2101.0,2100.3,1.47311133]
[1773428168990,2.58652895,2101.0,2100.5,1.47311133]
[1773428171010,2.58652895,2101.0,2100.5,2.66328611]
[1773428171316,2.58652895,2101.0,2100.5,2.71089382]
[1773428172185,2.58652895,2101.0,2100.5,1.52071904]
[1773428172388,2.58652895,2101.0,2100.5,1.47311133]
[1773428173115,1.3965973,2100.9,2100.4,0.04760997]
[1773428173320,1.3965973,2100.9,2100.2,0.0011]
[1773428173688,1.3965973,2100.9,2100.3,1.47311133]
[1773428174211,1.18993165,2101.0,2100.4,0.04760997]
[1773428174413,1.18993165,2101.0,2100.5,1.47311133]
[1773428174717,2.58652895,2101.0,2100.5,1.47311133]
[1773428174905,2.58652895,2101.0,2100.6,0.0011]
[1773428176395,1.18991572,2101.0,2100.6,1.52181677]
[1773428176918,2.58651302,2101.0,2100.6,0.0011]
[1773428177287,2.58651302,2101.0,2100.6,1.47421133]
[1773428180126,1.3965973,2100.9,2100.6,0.0011]
[1773428180293,1.18991572,2101.0,2100.6,1.47421133]
[1773428180494,2.58651302,2101.0,2100.6,1.47421133]
[1773428180722,1.3965973,2100.9,2100.6,0.0011]
[1773428181506,1.18991572,2101.0,2100.6,2.58402199]
[1773428181818,1.18991572,2101.0,2100.7,1.34518844]
[1773428182714,1.45093253,2100.9,2100.6,1.3861]
[1773428183023,1.45093253,2100.9,2100.4,0.0011]
[1773428183598,1.45093253,2100.6,2100.2,0.0011]
[1773428183824,1.45093253,2100.4,2100.2,0.0011]
[1773428185024,1.45093253,2100.3,2099.9,0.0011]
[1773428186130,1.19036282,2100.2,2099.9,0.0011]
[1773428186304,2.64129535,2100.2,2099.9,0.0011]
[1773428186823,1.45093253,2100.1,2099.7,0.0011]
[1773428187228,1.19036282,2100.2,2099.2,1.34518844]
[1773428187229,1.45093253,2099.9,2099.2,1.34518844]
[1773428188009,1.45093253,2099.7,2099.2,1.34518844]
[1773428188414,2.64149998,2099.9,2099.3,1.34518844]
[1773428188728,1.45093253,2099.8,2099.3,1.34518844]
[1773428188933,1.45093253,2099.8,2099.1,2.57496412]
[1773428189131,1.45093253,2099.8,2099.1,3.92015256]
[1773428189330,1.45093253,2099.8,2099.2,1.34518844]
[1773428190638,1.19064628,2099.7,2099.2,2.53611226]
[1773428190852,1.19053288,2099.9,2099.3,1.34518844]
[1773428192050,2.64146541,2099.9,2099.3,1.34518844]
[1773428193432,2.64146541,2099.9,2099.3,2.53603553]
[1773428194855,2.64146541,2099.9,2099.4,1.34518844]
[1773428195452,2.64146541,2099.9,2099.4,2.58359272]
[1773428195453,2.64146619,2099.9,2099.4,2.58359272]
[1773428196054,2.64146619,2099.9,2099.4,1.39282109]
[1773428196227,2.64146619,2099.9,2099.4,1.34518844]
[1773428196427,2.64146619,2099.9,2099.4,2.53600375]
[1773428196950,2.64146619,2099.9,2099.4,1.34518844]
[1773428197160,1.45093253,2099.8,2099.2,1.19092943]
[1773428197360,1.45093253,2099.8,2099.3,1.34518844]
[1773428197657,2.64157881,2099.7,2099.3,1.34518844]
[1773428197870,1.19062361,2099.8,2099.4,1.34518844]
[1773428198730,1.19057897,2099.9,2099.4,1.34518844]
[1773428199052,1.19057897,2099.9,2099.3,1.23848693]
[1773428199053,1.45093253,2100.3,2099.6,1.34518844]
[1773428199440,1.19036282,2100.2,2099.8,1.34518844]
[1773428199633,2.64128109,2100.3,2099.8,1.34518844]
[1773428200029,6.80334966,2100.7,2099.8,1.34518844]
[1773428200030,1.19017952,2100.6,2099.8,1.34518844]
[1773428200534,2.64111205,2100.6,2099.8,1.34518844]
[1773428200858,1.45093253,2100.6,2099.8,1.34518844]
[1773428201755,2.64107349,2100.6,2100.0,1.34518844]
[1773428203640,1.45093253,2100.5,2100.0,2.53565457]
[1773428203841,1.45093253,2100.5,2100.0,1.34518844]
[1773428204241,1.45093253,2100.5,2099.7,1.385]
[1773428204242,1.45093253,2100.5,2099.7,1.34518844]
[1773428204560,1.45093253,2100.5,2099.9,1.386]
[1773428206058,2.54173686,2100.4,2099.9,3.94092799]
[1773428206267,2.54173686,2100.4,2100.0,1.36440492]
[1773428207076,2.54173686,2100.4,2099.9,1.386]
[1773428207247,2.54173686,2100.4,2099.9,2.75040492]
[1773428208490,1.35148739,2100.3,2099.9,1.386]
[1773428209949,1.35148739,2100.3,2099.9,2.75040492]
[1773428210593,5.74205688,2100.8,2100.0,1.36440492]
[1773428210594,1.35148739,2100.7,2100.0,1.36440492]
[1773428210751,2.54160244,2100.7,2100.0,1.36440492]
[1773428210951,0.001,2100.8,2100.2,1.37410532]
[1773428211257,1.19102461,2100.8,2100.2,1.37410532]
[1773428213079,1.19102461,2100.8,2100.4,1.37410532]
[1773428214654,1.19102461,2100.8,2100.4,2.76010532]
[1773428214982,2.62146978,2100.8,2100.4,2.76010532]
[1773428215478,1.19102461,2100.8,2100.5,1.37410532]
[1773428215651,1.19103639,2100.8,2100.5,1.37410532]
[1773428216282,0.001,2100.8,2100.5,1.37410532]
[1773428217082,1.19102653,2100.8,2100.5,1.37410532]
[1773428217391,0.001,2100.8,2100.5,1.37410532]
[1773428219081,1.43144517,2100.8,2100.4,1.386]
[1773428219676,1.19007949,2100.7,2100.4,1.386]
[1773428219877,1.19106668,2100.8,2100.5,1.37410532]
[1773428220384,1.19106668,2100.8,2100.4,1.43360997]
[1773428220585,1.19106668,2100.8,2100.4,2.80771529]
[1773428220961,2.62151185,2100.8,2100.4,2.80771529]
[1773428221682,0.001,2100.8,2100.5,1.37410532]
[1773428224362,0.001,2100.8,2100.6,0.04760544]
[1773428224764,1.19085293,2101.1,2100.5,1.37410532]
[1773428225085,0.001,2101.1,2100.7,1.37410532]
[1773428225291,1.19090013,2101.1,2100.7,1.37410532]
[1773428225486,2.6213453,2101.1,2100.7,1.37410532]
[1773428225676,1.19085711,2101.1,2100.7,1.37410532]
[1773428225881,2.62130228,2101.1,2100.7,1.37410532]
[1773428227191,0.001,2101.1,2100.8,1.37410532]
[1773428227391,0.001,2101.1,2100.9,1.389]
[1773428227563,0.001,2101.1,2101.0,1.37410532]
[1773428228089,1.19066305,2101.5,2101.0,1.37410532]
[1773428229687,1.43144517,2101.5,2100.9,1.389]
[1773428231178,1.43144517,2101.5,2100.6,1.37410532]
[1773428231867,1.18968306,2101.4,2100.6,1.37410532]
[1773428232068,1.43044517,2101.3,2100.6,1.37410532]
[1773428232267,1.43044517,2101.3,2100.7,1.39]
[1773428233194,1.43044517,2101.3,2100.4,1.37410532]
[1773428234096,1.43044517,2101.1,2100.4,1.37410532]
[1773428234273,1.43044517,2101.1,2100.4,2.76410532]
[1773428234465,1.43044517,2101.1,2100.5,1.37410532]
[1773428234671,1.43044517,2101.1,2100.6,1.42171076]
[1773428234872,1.1897963,2101.2,2100.6,1.42171076]
[1773428235303,2.62022274,2101.3,2100.6,1.42171076]
[1773428235798,2.62022274,2101.3,2100.6,1.37410532]
[1773428235993,2.62022274,2101.3,2100.8,1.37410532]
[1773428235994,1.18977757,2101.3,2100.8,1.37410532]
[1773428236182,4.75888821,2101.4,2100.9,1.37410532]
[1773428239477,4.75888821,2101.4,2100.9,2.56406929]
[1773428239678,4.75888821,2101.4,2101.0,1.37410532]
[1773428240302,1.43044517,2101.3,2100.8,1.37410532]
[1773428240702,1.43044517,2101.3,2100.3,1.37410532]
[1773428241006,1.43044517,2101.3,2100.6,1.37410532]
[1773428241504,2.63395652,2101.2,2100.6,1.37410532]
[1773428242609,2.63395652,2101.2,2100.6,2.56423756]
[1773428242904,1.44416022,2101.1,2100.4,3.93250666]
[1773428243716,1.44416022,2101.1,2100.4,2.74227819]
[1773428243717,1.44416022,2100.9,2100.4,2.74227819]
[1773428244604,1.44416022,2100.9,2100.4,3.93252191]
[1773428244794,1.44416022,2100.9,2100.4,2.74227819]
[1773428245608,1.19002284,2100.8,2100.5,1.35127819]
[1773428250610,6.20408333,2100.9,2100.5,1.35127819]
[1773428250910,4.75828496,2101.6,2100.6,1.35127819]
[1773428250911,1.44416022,2101.1,2100.6,1.35127819]
[1773428251095,1.44416022,2101.3,2100.6,1.35127819]
[1773428252798,1.44416022,2101.1,2100.6,1.35127819]
[1773428254535,1.44416022,2101.1,2100.7,1.35127819]
[1773428255015,1.18990956,2101.0,2100.7,1.35127819]
[1773428257524,1.44416022,2101.3,2100.8,1.35127819]
[1773428258018,1.44416022,2101.3,2100.9,2.74427819]
[1773428259821,1.1897963,2101.2,2100.9,2.74427819]
[1773428260424,6.20324919,2101.3,2100.9,2.74427819]
[1773428260425,2.63394521,2101.3,2100.9,2.74427819]
[1773428263125,1.44416022,2101.2,2100.9,1.393]
[1773428264397,1.18985293,2101.1,2100.9,1.393]
[1773428264928,1.18985293,2101.1,2100.8,1.35127819]
[1773428265232,2.63398842,2101.2,2100.8,2.7928791]
[1773428265407,2.63398842,2101.2,2100.8,1.44160091]
[1773428265611,2.63398842,2101.2,2100.9,1.35389944]
[1773428266402,2.63398842,2101.2,2100.8,1.394]
[1773428266599,2.63398842,2101.2,2100.8,2.74789944]
[1773428268011,1.41416612,2101.1,2100.8,2.74789944]
[1773428269402,2.60403961,2101.1,2100.8,2.74789944]
[1773428270531,1.18987349,2101.1,2100.8,2.74789944]
[1773428271101,1.18987349,2101.1,2100.8,2.74899944]
[1773428271426,0.001,2100.9,2100.8,2.74899944]
[1773428272325,0.001,2100.9,2100.8,3.93902228]
[1773428272504,1.18970758,2101.4,2100.9,1.36074222]
[1773428272705,1.18970758,2101.4,2101.1,1.36074222]
[1773428272905,2.47704329,2101.4,2101.1,1.36074222]
[1773428274831,2.47704329,2101.4,2100.9,1.23756123]
[1773428275014,2.47704329,2101.4,2101.0,1.36074222]
[1773428276133,1.28733571,2101.3,2100.8,1.3951]
[1773428276629,1.28733571,2101.3,2100.5,0.0011]
[1773428276828,1.28733571,2101.1,2100.5,0.0011]
[1773428277335,1.28733571,2101.1,2100.5,1.36184222]
[1773428278029,1.18990956,2101.0,2100.5,1.36184222]
[1773428278236,1.28733571,2100.9,2100.5,1.36184222]
[1773428280835,1.19002284,2100.8,2100.5,1.36184222]
[1773428281012,1.28733571,2100.7,2100.5,0.0011]
[1773428281835,1.19002284,2100.8,2100.5,1.36184222]
[1773428283337,1.20251527,2100.8,2100.5,1.36184222]
[1773428283515,1.28733571,2101.1,2100.6,1.36074222]
[1773428283913,1.28733571,2101.1,2100.8,1.36074222]
[1773428284113,0.001,2100.9,2100.8,1.36074222]
[1773428286115,0.001,2100.9,2100.7,0.0011]
[1773428286315,0.001,2100.9,2100.7,1.36184222]
[1773428292151,0.001,2100.9,2100.8,1.36074222]
[1773428292456,0.001,2100.9,2100.8,1.40834313]
[1773428294050,2.47713715,2101.2,2100.9,1.36074222]
[1773428294226,4.99240368,2101.5,2100.9,1.36074222]
[1773428294227,2.47701877,2101.4,2101.0,1.36074222]
[1773428295238,1.28733571,2101.3,2100.9,2.75974222]
[1773428296328,1.28733571,2101.3,2100.9,2.76084222]
[1773428296728,1.28733571,2101.3,2101.0,1.4]
[1773428297329,1.1897963,2101.2,2101.0,1.4]
[1773428298054,1.28733571,2101.1,2100.9,0.0011]
[1773428298230,1.28733571,2101.1,2100.9,1.4021]
[1773428298631,1.28733571,2101.1,2100.7,1.4021]
[1773428299147,1.28733571,2101.1,2100.7,2.76284222]
[1773428300649,2.47724527,2101.0,2100.7,1.4021]
[1773428300947,1.28733571,2100.9,2100.7,0.0011]
[1773428301153,1.28733571,2100.9,2100.8,1.402]
[1773428302062,1.28733571,2100.9,2100.7,0.0011]
[1773428302827,2.56349422,2100.8,2100.7,0.0011]
[1773428306846,1.19001272,2100.9,2100.7,1.31229887]
[1773428307364,1.18996698,2100.9,2100.7,1.31229887]
[1773428309867,1.37347138,2101.3,2100.8,1.35879978]
[1773428310654,1.37347138,2101.3,2100.8,1.31119887]
[1773428311176,4.75894854,2101.4,2100.9,1.31229887]
[1773428311671,6.13241992,2101.4,2100.9,1.31229887]
[1773428311964,1.18968694,2101.4,2101.0,1.31119887]
[1773428312879,1.18968694,2101.4,2101.1,1.403]
[1773428313386,1.37347138,2101.3,2101.1,1.403]
[1773428313875,2.56325359,2101.3,2101.1,1.403]
[1773428315983,1.37347138,2101.1,2100.7,0.0011]
[1773428316275,1.18978221,2101.3,2100.1,1.31119887]
[1773428316276,1.37347138,2100.9,2100.1,1.31119887]
[1773428316463,1.37347138,2100.9,2100.2,6.912897]
[1773428316978,1.37347138,2100.9,2100.2,0.0011]
[1773428317155,1.37347138,2100.7,2099.7,1.31119887]
[1773428317475,1.37347138,2100.7,2099.8,2.369789]
[1773428317843,1.37347138,2100.7,2099.7,1.31119887]
[1773428318189,1.37347138,2100.5,2099.7,1.31119887]
[1773428318371,1.37347138,2100.5,2099.7,2.71519887]
[1773428319963,1.37347138,2100.3,2099.7,2.71519887]
[1773428320950,1.37347138,2100.3,2099.7,1.404]
[1773428322075,1.37347138,2100.1,2099.7,1.404]
[1773428323388,1.37347138,2100.1,2099.9,0.0011]
[1773428324287,2.56394757,2100.0,2099.6,0.0011]
[1773428324790,1.19047619,2100.0,2099.7,1.31119887]
[1773428324970,1.19044874,2100.1,2099.8,0.04762358]
[1773428325168,1.19044874,2100.1,2099.8,1.56663412]
[1773428325674,1.19039788,2100.2,2099.8,1.56663412]
[1773428325886,1.19035286,2100.3,2099.8,1.56663412]
[1773428326264,1.19035286,2100.3,2099.9,1.51901054]
[1773428326587,1.19035286,2100.3,2100.0,1.56662958]
[1773428327785,1.19028488,2100.4,2100.0,1.56662958]
[1773428328088,1.51389452,2100.7,2100.0,1.51901054]
[1773428328382,1.51389452,2100.7,2100.1,1.403]
[1773428329115,1.51389452,2100.7,2100.0,1.403]
[1773428329456,1.51389452,2100.7,2100.1,1.56662732]
[1773428330589,1.51389452,2100.9,2100.3,1.51901054]
[1773428332592,1.1899662,2101.0,2100.5,1.5201356]
[1773428332775,1.47247589,2100.9,2100.4,1.19024947]
[1773428333383,1.47247589,2100.9,2100.4,2.71038507]
[1773428333692,1.47247589,2100.9,2100.4,1.5201356]
[1773428334788,2.6624614,2100.9,2100.5,1.5201356]
[1773428336174,0.001,2100.7,2100.5,1.5201356]
[1773428336586,1.18993084,2101.0,2100.5,1.5201356]
[1773428336896,0.001,2101.1,2100.7,1.5201356]
[1773428337067,0.001,2101.1,2100.8,2.9221356]
[1773428338096,0.001,2101.1,2100.8,1.402]
[1773428338591,1.47347589,2101.1,2100.8,1.402]
[1773428338775,1.47247589,2100.9,2100.8,1.402]
[1773428339181,1.47247589,2100.9,2100.4,1.5201356]
[1773428339394,1.47247589,2100.9,2100.2,1.5201356]
[1773428339778,1.47247589,2100.9,2100.1,0.0011]
[1773428340184,1.47247589,2100.9,2100.1,1.1915171]
[1773428340378,1.47247589,2100.9,2100.2,1.402]
[1773428340984,1.47247589,2100.7,2100.2,1.402]
[1773428341167,1.47247589,2100.7,2100.1,0.0011]
[1773428341364,1.47247589,2100.7,2100.2,1.402]
[1773428343898,2.66261204,2100.6,2100.2,1.402]
[1773428344973,1.47247589,2100.5,2100.2,1.402]
[1773428346290,1.1902161,2100.5,2100.3,0.04761224]
[1773428347803,1.1902161,2100.5,2100.4,0.0011]
[1773428348000,1.1912161,2100.5,2100.4,0.0011]
[1773428349701,2.66369199,2100.5,2100.3,0.04761224]
[1773428350081,2.66369199,2100.5,2100.2,1.402]
[1773428350492,2.66369199,2100.5,2100.1,1.5212356]
[1773428351403,0.001,2100.5,2100.2,1.5201356]
[1773428351628,1.19119535,2100.5,2100.2,1.5201356]
[1773428351884,1.19119535,2100.5,2100.2,2.9221356]
[1773428352909,2.66367124,2100.5,2100.2,1.402]
[1773428353113,1.47247589,2100.4,2100.2,1.402]
[1773428355209,1.47247589,2100.4,2100.3,0.04761224]
[1773428355412,2.662732,2100.4,2100.2,1.402]
[1773428356691,1.47247589,2100.4,2100.2,1.402]
[1773428357615,0.001,2100.5,2100.2,1.402]
[1773428357791,0.001,2100.5,2100.3,0.04761224]
[1773428358221,1.47347589,2100.5,2100.3,0.04761224]
[1773428358392,1.47347589,2100.5,2100.2,2.9221356]
[1773428358718,1.47347589,2100.5,2100.2,1.402]
[1773428359896,2.66272536,2100.4,2100.2,1.402]
[1773428360102,2.66272536,2100.4,2099.9,0.0011]
[1773428360103,1.47247589,2100.3,2099.9,0.0011]
[1773428361625,1.47247589,2100.3,2100.1,0.0011]
[1773428363031,2.6287008,2100.2,2100.1,0.0011]
[1773428367402,1.19030614,2100.3,2100.1,1.4807181]
[1773428368506,1.43933798,2100.5,2100.1,1.4807181]
[1773428368722,1.19024947,2100.4,2100.2,1.5272326]
[1773428368923,1.19024947,2100.4,2100.2,1.4796181]
[1773428369927,1.19024947,2100.4,2100.1,0.0011]
[1773428370229,1.19024947,2100.4,2100.1,1.4807181]
[1773428370398,2.62858745,2100.4,2100.1,0.0011]
[1773428371921,2.62858745,2100.4,2100.1,1.4807181]
[1773428372614,1.43833798,2100.3,2100.1,0.0011]
[1773428373505,1.43933798,2100.3,2100.1,0.0011]
[1773428373905,1.19036282,2100.2,2100.1,0.0011]
[1773428374627,1.19036282,2100.2,2100.1,1.4807181]
[1773428375338,1.19036282,2100.2,2100.1,0.0011]
[1773428376139,1.19134565,2100.3,2100.1,0.0011]
[1773428377826,2.62968363,2100.3,2100.1,0.0011]
[1773428378535,1.43933798,2100.3,2100.1,0.0011]
[1773428378834,1.43933798,2100.3,2100.1,1.4807181]
[1773428378835,0.001,2100.3,2100.1,1.4807181]
[1773428379726,0.001,2100.3,2100.2,0.04761451]
[1773428380838,1.43933798,2100.3,2100.1,0.0011]
[1773428382715,0.001,2100.3,2100.1,1.4807181]
[1773428385240,1.39815293,2100.3,2100.0,0.0011]
[1773428385412,1.19036282,2100.2,2100.0,0.0011]
[1773428386436,0.001,2100.1,2100.0,0.0011]
[1773428390636,0.001,2100.3,2100.1,1.39106644]
[1773428390837,0.001,2100.3,2100.2,0.04761451]
[1773428391650,1.19131467,2100.3,2100.1,1.39106644]
[1773428391851,0.001,2100.3,2100.1,1.39106644]
[1773428393851,1.44369055,2100.3,2100.0,0.0011]
[1773428394039,2.63305337,2100.2,2100.0,0.0011]
[1773428395268,2.63305337,2100.2,2100.0,1.4051]
[1773428398360,1.19036282,2100.2,2100.0,1.4051]
[1773428398569,1.19136216,2100.3,2100.2,0.0011]
[1773428399238,0.001,2100.3,2100.2,0.0011]
[1773428399646,2.63399669,2100.3,2100.2,0.0011]
[1773428400581,1.44269055,2100.2,2100.0,0.0011]
[1773428400860,1.19130614,2100.3,2100.1,1.35063774]
[1773428400861,1.19051453,2100.3,2100.1,1.35063774]
[1773428401161,2.63320508,2100.3,2100.0,1.4071]
[1773428401346,1.19051453,2100.3,2100.0,1.4071]
[1773428401546,1.44269055,2100.2,2100.0,1.4071]
[1773428402262,0.0002,2100.3,2100.0,1.4071]
[1773428402460,0.0002,2100.3,2100.1,1.39407319]
[1773428402960,0.001,2100.5,2100.2,1.34301107]
[1773428403532,1.44369055,2100.5,2100.2,1.34301107]
[1773428403736,1.44369055,2100.5,2100.0,0.0011]
[1773428404038,1.44369055,2100.5,2100.1,1.33959779]
[1773428404246,0.001,2100.5,2100.1,2.57761608]
[1773428404457,0.001,2100.5,2100.2,1.33959779]
[1773428405154,1.44369055,2100.5,2100.2,1.33959779]
[1773428406172,1.44369055,2100.5,2100.0,2.73392356]
[1773428406340,1.44269055,2100.3,2100.0,1.3981]
[1773428408039,1.44269055,2100.3,2099.9,0.0011]
[1773428408239,1.19036282,2100.2,2099.9,0.0011]
[1773428408463,1.1902915,2100.4,2099.9,1.48682386]
[1773428408664,1.1902915,2100.4,2100.0,1.5333429]
[1773428409267,2.63298205,2100.4,2100.0,1.5333429]
[1773428410880,2.63298205,2100.4,2100.0,1.48572386]
[1773428411175,2.63298205,2100.4,2100.2,0.0011]
[1773428411358,0.001,2100.3,2100.2,0.0011]
[1773428411754,1.44369055,2100.3,2100.2,0.0011]